Cogmind - Beta 15 @@@ ROGUE MODE // 2025.05.15 @ 23:21:12 Player: Rubbe Result: Destroyed by G-47 Trooper with Particle Gun Performance ------------- Evolutions (2) 1000 Regions Visited (3) 600 Robots Destroyed (25) 125 Value Destroyed (762) 762 Prototype IDs (0) 0 Alien Tech Used (0) 0 Bonus (0) 0 TOTAL SCORE: 2487 Bonus ------- None Cogmind --------- Core Integrity 0/550 Matter 235/300 Energy 100/100 System Corruption 20% Temperature Cool (64) Movement Core (100) Ox1 Location -8/Materials Parts ------- > --- POWER (1) -------- (None) > --- PROPULSION (4) --- (None) > --- UTILITY (4) ------ Improved Heat Sink Salvage Targeting Computer > --- WEAPON (2) ------- Assault Cannon > --- INVENTORY (5) ---- Light Deuterium Engine Shield Generator Salvaging Laser Heavy Particle Cannon Peak State ------------ > --- POWER ------------ Light Nuclear Core > --- PROPULSION ------- Aluminum Leg Aluminum Leg Aluminum Leg Aluminum Leg > --- UTILITY ---------- Medium Storage Unit Improved Terrain Scanner Improved Terrain Scan Processor Salvage Targeting Computer > --- WEAPON ----------- Heavy Assault Rifle Assault Cannon > --- INVENTORY -------- Machine Analyzer Shield Generator Hacking Suite Salvaging Laser Spread Laser Assault Cannon Assault Cannon Assault Cannon Shock Bomb Launcher Datajack [Rating: 23] Favorites ----------- Power Light Nuclear Core Engine Light Ion Engine Power Core Light Nuclear Core Propulsion Aluminum Leg Leg Aluminum Leg Utility Improved Terrain Scanner Device Improved Terrain Scanner Storage Small Storage Unit Processor Salvage Targeting Computer Weapon Assault Rifle Energy Gun Medium Laser Ballistic Gun Assault Rifle Ballistic Cannon Assault Cannon Launcher Shock Bomb Launcher Slashing Weapon Katana Build | -11 -10 -9 -8 ------- Run | Yrd Mat Mat Mat Slots Evolved 4 | . . 2 2 Power . | . . . . Propulsion 2 | . . 2 . Utility 2 | . . . 2 Weapon . | . . . . Parts Attached 31 | 7 1 8 15 Power 5 | 2 . 1 2 Engine 3 | 2 . . 1 Core 2 | . . 1 1 Reactor . | . . . . Propulsion 8 | 2 . 5 1 Treads . | . . . . Leg 8 | 2 . 5 1 Wheel . | . . . . Hover . | . . . . Flight . | . . . . Utility 7 | 1 1 . 5 Device 2 | . 1 . 1 Storage 2 | 1 . . 1 Processor 3 | . . . 3 Hackware . | . . . . Protection . | . . . . Artifact . | . . . . Weapon 11 | 2 . 2 7 Energy Gun 3 | . . 1 2 Energy Cannon . | . . . . Ballistic Gun 3 | 2 . 1 . Ballistic Cannon 3 | . . . 3 Launcher 1 | . . . 1 Special Weapon . | . . . . Impact Weapon . | . . . . Slashing Weapon 1 | . . . 1 Piercing Weapon . | . . . . Special Melee Weapon . | . . . . Unidentified Prototypes . | . . . . Corrupted Parts 2 | . . . 2 System Corruption 6 | . . . 6 Parts Lost 18 | . . 3 15 Power 3 | . . 1 2 Propulsion 6 | . . 2 4 Utility 3 | . . . 3 Weapon 6 | . . . 6 Highest Loss Streak 9 | . . 2 9 To Critical Strikes . | . . . . Average Backups 7 | 1 5 7 9 Power . | . 1 1 . Propulsion . | . 1 . . Utility 2 | . 1 2 2 Weapon 3 | . 1 2 5 Tool/Special . | . . . . Unused Backups 14 | . 1 2 11 Power . | . . . . Propulsion 1 | . 1 . . Utility 7 | . . 2 5 Weapon 5 | . . . 5 Tool/Special 1 | . . . 1 Average Slot Usage (%) 87 | . 91 96 81 Engine 4 | . 14 8 . Core 3 | . . . 5 Leg 30 | . 28 41 25 Device 8 | . 6 11 7 Storage 10 | . 14 11 8 Processor 9 | . . . 17 Energy Gun 4 | . . 8 3 Ballistic Gun 11 | . 28 13 5 Ballistic Cannon 2 | . . . 4 Slashing Weapon 1 | . . . 2 Peak Build Rating 23 | 6 10 15 23 Average Rating 14 | 4 7 11 18 On Entrance 7 | . 6 10 15 Naked Turns . | . . . . Heaviest Build 24 | 11 12 16 24 Greatest Support 40 | 20 20 40 40 Greatest Overweight (x) 4 | 1 . . 4 Average Overweight (x) . | . . . . Largest Inventory Capacity 10 | 8 8 8 10 Average Capacity 8 | 7 8 8 9 Most Carried 10 | 5 8 8 10 Average Carried 7 | 2 5 7 9 Final Capacity 8 | 8 8 8 5 Final Carried 8 | 3 8 8 4 Class Distribution -------------------- 62% | Mutant 37% | Scavenger-Mutant Dominant Class ---------------- Mutant | -10/Materials Mutant | -9/Materials Scavenger-Mutant | -8/Materials Resources | -11 -10 -9 -8 ----------- Run | Yrd Mat Mat Mat Matter Collected 794 | 16 230 175 373 Remotely . | . . . . Salvage Created 898 | 86 62 260 490 Parts 43 | 4 4 13 22 Haulers Intercepted 1 | . . . 1 Recyclers Shooed 1 | . 1 . . Parts Field Recycled . | . . . . Retrieved Matter . | . . . . Parts Self-Destructed . | . . . . Prevented . | . . . . Kills | -11 -10 -9 -8 ------- Run | Yrd Mat Mat Mat Combat Hostiles Destroyed 18 | . 1 8 9 Melee 3 | . . . 3 Guns 10 | . 1 7 2 Cannons 4 | . . . 4 AOE 1 | . . 1 . Classes Destroyed 13 | 2 2 2 7 Worker 1 | . . . 1 Builder 1 | . . . 1 Tunneler 1 | 1 . . . Hauler 1 | . . . 1 Recycler 1 | 1 . . . Operator 1 | . 1 . . Watcher 1 | . . . 1 Swarmer 2 | . . 2 . Grunt 11 | . 1 5 5 Brawler 1 | . . . 1 Duelist 1 | . . . 1 Sentry 2 | . . 1 1 Hunter 1 | . . . 1 Best Kill Streak 6 | 2 1 6 5 Combat Bots Only 6 | . 1 6 3 Max Kills in Single Turn 2 | 1 1 1 2 Gunslinging . | . . . . Exploded 1 | . . 1 . Melee 1 | . . . 1 Uniques/NPCs Destroyed . | . . . . Combat | -11 -10 -9 -8 -------- Run | Yrd Mat Mat Mat Hostile Shots Fired 228 | . . 77 151 Missed 62 | . . 25 37 Hits 166 | . . 52 114 Melee 15 | . . . 15 Projectile 151 | . . 52 99 Critical Strikes 14 | . . 1 13 Damage Taken 2722 | . 22 671 2029 Core 653 | . . 93 560 Absorbed by Shields . | . . . . Core Remaining (%) 92 | 100 100 76 . Volleys Fired 73 | 5 5 17 46 Largest 2 | 2 2 2 2 Hottest 74 | 40 40 70 74 Shots Fired 125 | 10 10 34 71 Gun 81 | 10 10 34 27 Cannon 43 | . . . 43 Launcher 1 | . . . 1 Special . | . . . . Kinetic 104 | 10 10 17 67 Thermal 20 | . . 17 3 Explosive . | . . . . Electromagnetic 1 | . . . 1 Robot Hit Streak 28 | 4 8 12 28 Robot Miss Streak 2 | 1 2 2 2 Penetration Max . | . . . . Secondary Targets . | . . . . Shots Hit Robots 97 | 7 7 26 57 Core Hits 41 | 3 4 13 21 Critical Kills . | . . . . Critical Parts Destroyed . | . . . . Critical Strikes 2 | . . 2 . Burn 2 | . . 2 . Melee Attacks 13 | . . . 13 Impact . | . . . . Slashing 13 | . . . 13 Piercing . | . . . . Sneak Attacks . | . . . . Combat Hostiles . | . . . . Follow-up Attacks . | . . . . Damage Inflicted 1871 | 85 76 418 1292 Guns 799 | 85 76 322 316 Cannons 689 | . . . 689 Explosions 213 | . . 96 117 Melee 170 | . . . 170 Ramming . | . . . . Kinetic 1277 | 85 76 147 969 Thermal 287 | . . 175 112 Explosive 96 | . . 96 . Electromagnetic 41 | . . . 41 Impact . | . . . . Slashing 170 | . . . 170 Piercing . | . . . . Highest Corruption 20 | . . 1 20 Average Corruption 3 | . . 1 4 Corruption Purged . | . . . . Corruption Blocked . | . . . . Effects 16 | . . 2 14 Message Errors 2 | . . 1 1 Matter Fused 4 | . . . 4 Heat Flow Errors 2 | . . . 2 Energy Discharges 2 | . . . 2 Parts Rejected 2 | . . 1 1 Data Loss (minor) 1 | . . . 1 Data Loss (major) 1 | . . . 1 Weapon Failures 2 | . . . 2 Overload Shots . | . . . . Overflow Damage 24 | . . . 24 Projectiles . | . . . . Explosions 15 | . . . 15 Melee 9 | . . . 9 Knockbacks 11 | . . . 11 Impact . | . . . . Kinetic 10 | . . . 10 Secondary 1 | . . . 1 Self-Inflicted Damage 129 | . . 112 17 Shots 2 | . . 1 1 Rammed . | . . . . Targets Rammed . | . . . . Kicked . | . . . . Crushed . | . . . . Highest Temperature 262 | . 6 30 262 Average Temperature 45 | . 6 13 59 Received Heat Transfer 1116 | . 12 114 990 Siege Activations . | . . . . Martial Activations . | . . . . Shielding Activations . | . . . . Robots Disrupted . | . . . . Combat Hostiles . | . . . . Robots Corrupted . | . . . . Combat Hostiles . | . . . . Parts Fried . | . . . . Impact Corruptions . | . . . . Robots Melted . | . . . . Combat Hostiles . | . . . . Parts Melted 3 | . . 3 . Heat Transferred 841 | . . 666 175 Parts Sabotaged . | . . . . Parts Stolen . | . . . . Parts Stripped . | . . . . Power Chain Reactions 2 | . . . 2 Alert | -11 -10 -9 -8 ------- Run | Yrd Mat Mat Mat Maximum Alert Level . | . . . . Low Security (%) 100 | 100 100 100 100 Level 1 . | . . . . Level 2 . | . . . . Level 3 . | . . . . Level 4 . | . . . . Level 5 . | . . . . High Security . | . . . . Max Security . | . . . . Peak Influence 186 | 5 30 186 140 Initial 74 | . . . 74 Average 52 | . 6 51 67 Influence Increases 716 | 10 35 296 375 Destroy 0b10 Robot/C 360 | . 20 160 180 Destroy 0b10 Robot/NC 35 | 10 5 . 20 Destroy Leader 84 | . 10 20 54 Disable Machine 15 | . . 15 . Destroy Structure 42 | . . 26 16 Lose Combat Pursuer 180 | . . 75 105 Influence Decreases 670 | 10 35 120 505 Entered New Map 102 | . . . 102 Time Decay 398 | 10 35 100 253 Lost Part 170 | . . 20 150 Squads Dispatched 2 | . 1 1 . Investigation . | . . . . Extermination . | . . . . Reinforcement 2 | . 1 1 . Assault . | . . . . Garrison . | . . . . Intercept . | . . . . Searches Triggered . | . . . . Construction Impeded . | . . . . Haulers Reinforced . | . . . . Active Scanning Responses . | . . . . Cargo Convoy Interrupts . | . . . . Stealth | -11 -10 -9 -8 --------- Run | Yrd Mat Mat Mat Distress Signals 3 | . 1 2 . Communications Jammed . | . . . . Distress Signals . | . . . . Times Spotted 34 | . 2 17 15 Peak Tracking Total 13 | . 1 13 5 Tactical Retreats 6 | . . 3 3 Traps | -11 -10 -9 -8 ------- Run | Yrd Mat Mat Mat Traps Triggered . | . . . . Indirectly . | . . . . Trap Hack Attempts . | . . . . Triggered . | . . . . Disarmed 11 | . 7 . 4 Reprogrammed . | . . . . Reused . | . . . . Traps Extracted . | . . . . Installed . | . . . . Triggered . | . . . . Machines | -11 -10 -9 -8 ---------- Run | Yrd Mat Mat Mat Machines Disabled 1 | . . 1 . Max in Single Turn 1 | . . 1 . Machines Repaired . | . . . . Machines Dismantled . | . . . . Machines Sabotaged . | . . . . Overloaded Fab Kills . | . . . . Hacking | -11 -10 -9 -8 --------- Run | Yrd Mat Mat Mat Machines Accessed 6 | . 3 1 2 Terminals 5 | . 2 1 2 Fabricators . | . . . . Repair Stations . | . . . . Recycling Units 1 | . 1 . . Scanalyzers . | . . . . Garrison Access . | . . . . Total Hacks 21 | . 12 4 5 Successful 7 | . 4 2 1 Failed 14 | . 8 2 4 Catastrophic 1 | . . . 1 Database Lockouts . | . . . . Manual . | . . . . Terminals 18 | . 9 4 5 Fabricators . | . . . . Repair Stations . | . . . . Recycling Units 3 | . 3 . . Scanalyzers . | . . . . Garrison Access . | . . . . Terminal Hacks 6 | . 3 2 1 Record 1 | . . 1 . Disarm Traps 3 | . 2 . 1 Hauler Manifests 1 | . 1 . . Zone Layout 1 | . . 1 . Fabricator Hacks . | . . . . Repair Station Hacks . | . . . . Recycling Unit Hacks 1 | . 1 . . Retrieve Components 1 | . 1 . . Scanalyzer . | . . . . Garrison Access Hacks . | . . . . Unauthorized Hacks . | . . . . Terminals . | . . . . Fabricators . | . . . . Repair Stations . | . . . . Recycling Units . | . . . . Scanalyzers . | . . . . Garrison Access . | . . . . Data Cores Recovered . | . . . . Used . | . . . . Hacking Detections 6 | . 3 1 2 Full Trace Events 2 | . 2 . . Feedback Events . | . . . . Feedback Blocked . | . . . . Robot Schematics Acquired . | . . . . Robots Built . | . . . . Authchips . | . . . . Time . | . . . . Total Robot Build Rating . | . . . . Part Schematics Acquired . | . . . . Parts Built . | . . . . Authchips . | . . . . Time . | . . . . Total Part Build Rating . | . . . . Parts Repaired . | . . . . Time . | . . . . Parts Recycled . | . . . . Recycled Matter . | . . . . Retrieved Matter . | . . . . Retrieved Components 1 | . 1 . . Parts Scanalyzed . | . . . . Part Schematics Acquired . | . . . . Parts Damaged . | . . . . Bothacking | -11 -10 -9 -8 ------------ Run | Yrd Mat Mat Mat Used RIF Installer . | . . . . Robots Hacked . | . . . . Non-combat . | . . . . Combat . | . . . . Robot Hacks Applied . | . . . . Relay Couplers Released . | . . . . Fabnet Peak Effective % . | . . . . Robots Rewired . | . . . . Allies Hacked . | . . . . Hacks Repelled . | . . . . Allies | -11 -10 -9 -8 -------- Run | Yrd Mat Mat Mat Total Allies . | . . . . Largest Group . | . . . . Highest-Rated Group . | . . . . Highest-Rated Ally . | . . . . Total Orders . | . . . . Ally Attacks . | . . . . Total Damage . | . . . . Kills . | . . . . Allies Corrupted . | . . . . Allies Melted . | . . . . Intel | -11 -10 -9 -8 ------- Run | Yrd Mat Mat Mat Active Infowar (turns) 823 | . 70 359 394 Terrain 823 | . 70 359 394 Robot Analysis Total . | . . . . Derelict Logs Recovered . | . . . . Drone Launches . | . . . . Drone Recoveries . | . . . . Exploration | -11 -10 -9 -8 ------------- Run | Yrd Mat Mat Mat Turns Passed 1247 | 66 148 359 674 Spaces Moved 695 | 32 89 231 343 Core 15 | 8 . . 7 Treads . | . . . . Legs 680 | 24 89 231 336 Wheels . | . . . . Hover . | . . . . Flight . | . . . . Fastest Speed 50 | 50 120 120 120 Average Speed 127 | 113 120 120 136 Slowest Speed 260 | 120 120 120 260 Overloaded Moves . | . . . . Propulsion Burnouts . | . . . . Robots Hopped . | . . . . Potential Cave-ins . | . . . . Cave-ins Triggered . | . . . . Exploration Rate (%) 16 | 4 22 20 21 Regions Visited 3 Branch Regions . Pre-discovered Areas . | . . . . Known Exits Taken . | . . . . Unknown Exits Taken 3 | 1 1 1 . Scrap Searched . | . . . . Spaces Dug . | . . . . Terrain Destroyed 46 | . . 31 15 Melee . | . . . . Projectile 6 | . . . 6 AOE 40 | . . 31 9 Terrain Rammed . | . . . . Walls Destroyed . | . . . . Machines Disabled . | . . . . Actions | -11 -10 -9 -8 --------- Run | Yrd Mat Mat Mat Total 915 | 52 122 280 461 Wait 37 | . 20 10 7 Move 692 | 31 88 230 343 Hop . | . . . . Pick Up 50 | 9 7 10 24 Fast Attach . | . . . . Attach 25 | 6 1 7 11 Detach . | . . . . Swap 8 | 1 . 2 5 Drop 17 | . 1 4 12 Fire 73 | 5 5 17 46 Melee 13 | . . . 13 Ram . | . . . . Kick . | . . . . Crush . | . . . . Escape Stasis . | . . . . Rewire . | . . . . Trap . | . . . . Miscellaneous . | . . . . Route ------- -11/Scrapyard -10/Materials -9/Materials -8/Materials History --------- Turn | Location | Event 7 | -11/Scrapyard | Discovered new exit (range 15) 67 | -11/Scrapyard | Entered Materials 68 | -10/Materials | Met a group of wandering Federalists 209 | -10/Materials | Discovered new exit (range 3) 215 | -10/Materials | Entered another Materials area 215 | -9/Materials | Accompanied by 1 ally 215 | -9/Materials | Evolved 2 slots: Propulsion x2 324 | -9/Materials | Build established: Mutant 523 | -9/Materials | Discovered new exit (range 10) 574 | -9/Materials | Entered another Materials area 574 | -8/Materials | Evolved 2 slots: Utility x2 822 | -8/Materials | Build established: Scavenger-Mutant 1036 | -8/Materials | Core integrity fell below 50% 1055 | -8/Materials | Lost 9 parts (1p3n1u4w) 1206 | -8/Materials | System corruption reached 10% 1221 | -8/Materials | Core integrity fell below 20% 1248 | -8/Materials | Destroyed by G-47 Trooper with Particle Gun Last Messages --------------- Critical hit (Burn: +37). K-01 Serf collects debris. System corrupted: Assault Cannon jammed. Lgt. Deuterium Engine destroyed. Acquired 10 matter. K-01 Serf collects debris. System corrupted: Component data lost. K-01 Serf collects debris. G-47 Trooper knocked back. System corrupted: Assault Cannon jammed. Critical hit (Burn: +37). U-05 Engineer builds a Wall. Assault Cannon destroyed. System corrupted: Heat flow error (+271). G-47 Trooper knocked back. U-05 Engineer builds a Door. G-47 Trooper knocked back. U-05 Engineer builds a Wall. G-47 Trooper knocked back. Aluminum Leg destroyed. Map ----- +----------------------------------------------------+ | ?????# ##"T # """""#????#?#?#???? | | #??#?#? ?#"" """ # = """""#?###?????#??? | | #########+###### """ # ! """""#######??????? | | ! """ # """ #??#??#???#??? | | # #?####???????? | | # !###?######???? | | ##+############# """ # = #??#####?#???? | | # ?## """ ##########??##?###??#?? | | # ? ?## """ # T #?#?#?##?????# | | #"" ?# # """ #?##?#???????? | | "" """"" #"T? ## # """ ##??##??????#? | | "" """"" #?" ?# + """ ##?#?###?????? | | "" """"" #??? ## # #????#???#???? | | ############+### [[! # """ #???#?#?????#? | | [[ # """ ##?##?#?#?#??# | | % [! # """ ! ##?#####?????? | | %= # ##?##????????? | | %! ############???#?#?#??? | | ##################+####### ###?##?##?#????##?????? | | #?####?###?##### ## ##########????????????? | | ##?#?##?#####?## """ ## u +?? ????????#??? | | ##?###?####?#### """"" ##+##g## # "?"? ?????????? | | #####?#?#?##??# """"" # % %# # ""????????????? | | "####?######??## """"" # !] u%u /k???? ###??????? | | "###########?### """ #!!/ g%# ? ??????????????? | | "###?##?#####??# #@[%* # ?? ?? ??????????? | | "##########???## "T" #**= %# #?????#?????????? | | "##?########???# """ #**% % # #???????????????? | | "######?? ? ################# ????????????????? | | "###?## ??"? ????? ??? ?#??????#??????????????? | | ####?# ??"??????? ?????? ?#??#??????????????????? | | ######? ?"??? ??#???"? ???????#??????????????????? | | ?###?##????? ? ????""????? ##????????????????????? | | ##???#???"?"?? #?#??"??? ????#???????????????????? | | #??#????????????#??? ? ??????????????????????????? | | ???##?# ?"??????????? ???????#? ?????????????????? | | ?##?????????????##?? ????? ???? ?????????????????? | | ???????#????????????#????????????????????????????? | | ????????????????????????????#????????????????????? | | ? ? ??? ???????????? ? ???#??????????????????????? | | ????????????????????????????????????????????????? | | ?????????????????????????????????????????????????? | | #????????????????????????????????????????????????? | | ?????????????????????????????????????????????????? | | ?#???????????????????????????????????????????????? | | ?????????????????????????????????????????????????? | | ?????????????????????????????????????????????????? | | ?????????????????????????????????????????????????? | | ?????????????????????????????????????????????????? | | ?????????????????????????????????????????????????? | +----------------------------------------------------+ Best States ------------- Heat Dissipation 45 Energy Generation 14 Energy Capacity 250 Matter Stores 300 Matter Capacity 300 Sight Range 16 Terrain Scan Range 16 Terrain Scan Density 110 Evasion (%) 55 Salvage Targeting 2 Item Schematics ----------------- None Robot Schematics ------------------ None Fabricated ------------ Nothing Repaired ---------- Nothing Alien Tech Used ----------------- None Achievements -------------- Omniscient Cartographer Challenges ------------ None Game ------ Seed VoltaicDeepCapacitor Manual? 0 Play Time 00:15:26 Cumulative 9.2 hours Start 2025.05.15 @ 22:15:54 End 2025.05.15 @ 23:21:12 Sessions 1 Manual Loads 0 Difficulty Rogue Special Mode None Game No. 38 Rogue 38 Adventurer 0 Explorer 0 Win Type - Total 0 Types 0/0/0/0/0/0/0/0/0/0 Lore% 6 Gallery% 16 Achievement% 18 Wizard Run 0 Options --------- Layout 1 ASCII 0 Keyboard 0 Movement Mouse Keybinds 0 Fullscreen 1 Font 24/Smallcaps Map View 50x35 Zoom Use 0% Tactical HUD 0 Map Filters NONE Filters NONE Steam 1 RUN: 5dd680d5-990e-4793-839e-013397258cd2